bitfinex/quotes_BTCUSD_20240701
["timestamp","ask_amount","ask_price","bid_price","bid_amount"]
[1719842710334,0.00084,62826.0,62825.0,1.83142929]
[1719842710693,0.00084,62826.0,62825.0,1.92713929]
[1719842713247,0.00084,62826.0,62825.0,2.37776662]
[1719842713841,0.00084,62826.0,62825.0,2.05942262]
[1719842714644,0.00841,62831.0,62830.0,1.04059703]
[1719842714850,0.318186,62857.0,62850.0,0.2]
[1719842715113,0.24243002,62861.0,62855.0,0.16233898]
[1719842715114,0.0084,62858.0,62855.0,0.16233898]
[1719842715349,0.02,62868.0,62851.0,0.00318169]
[1719842715350,0.08643002,62872.0,62859.0,0.2]
[1719842715556,0.08231,62870.0,62861.0,0.37762705]
[1719842715747,0.08231,62870.0,62860.0,0.0808767]
[1719842715748,0.08231,62870.0,62867.0,0.2]
[1719842715952,0.00841,62870.0,62869.0,0.63951998]
[1719842716087,0.00841,62870.0,62869.0,0.98064098]
[1719842716287,0.00841,62870.0,62869.0,0.73752021]
[1719842717798,0.00841,62870.0,62869.0,0.26033921]
[1719842718003,0.00841,62870.0,62869.0,0.27433921]
[1719842718244,0.00841,62870.0,62869.0,0.43339921]
[1719842718648,0.00841,62870.0,62869.0,0.27433921]
[1719842718852,0.485584,62870.0,62869.0,0.17633898]
[1719842719052,0.8037,62870.0,62869.0,0.17633898]
[1719842719227,0.94423195,62870.0,62869.0,0.17633898]
[1719842719630,0.94423195,62870.0,62869.0,0.19033898]
[1719842719874,0.94423195,62870.0,62869.0,0.22525598]
[1719842720032,0.96423195,62870.0,62869.0,0.22525598]
[1719842720438,0.8037,62870.0,62869.0,0.22525598]
[1719842720638,1.04226197,62870.0,62869.0,0.19033898]
[1719842720898,1.11506197,62870.0,62869.0,0.19033898]
[1719842721716,0.97453002,62870.0,62869.0,0.19033898]
[1719842721927,1.11506197,62870.0,62869.0,0.19033898]
[1719842722261,1.13506197,62870.0,62869.0,0.19033898]
[1719842722467,1.13506197,62870.0,62869.0,0.20937288]
[1719842722931,1.11506197,62870.0,62869.0,0.20937288]
[1719842723336,1.45317797,62870.0,62869.0,0.20937288]
[1719842723940,0.97453002,62870.0,62869.0,0.20937288]
[1719842724190,1.13506197,62870.0,62869.0,0.20937288]
[1719842724386,1.29264602,62870.0,62869.0,0.20937288]
[1719842724581,1.13506197,62870.0,62869.0,0.19033898]
[1719842724840,1.29264602,62870.0,62869.0,0.19033898]
[1719842725091,1.52757797,62870.0,62869.0,0.19033898]
[1719842726087,1.52757797,62870.0,62869.0,0.028]
[1719842726490,1.84569397,62870.0,62869.0,0.014]
[1719842726870,0.79548,62855.0,62854.0,0.01916214]
[1719842727068,0.79548,62855.0,62854.0,0.46878619]
[1719842727069,0.477288,62855.0,62854.0,0.46878619]
[1719842727270,0.79548,62855.0,62854.0,0.32116998]
[1719842727753,0.93601195,62855.0,62854.0,0.32116998]
[1719842728196,0.14053195,62859.0,62854.0,0.32116998]
[1719842728415,0.0922,62864.0,62854.0,0.32116998]
[1719842728416,0.63781995,62855.0,62854.0,0.158831]
[1719842728572,1.50953397,62855.0,62854.0,0.158831]
[1719842729033,1.50953397,62855.0,62854.0,0.172831]
[1719842729791,1.48953397,62855.0,62854.0,0.35245308]
[1719842729993,1.48953397,62855.0,62854.0,0.33845308]
[1719842730412,1.48953397,62855.0,62854.0,0.35245308]
[1719842730413,1.50953397,62855.0,62854.0,0.35245308]
[1719842730606,0.477288,62855.0,62854.0,0.35245308]
[1719842730951,0.159096,62855.0,62854.0,0.33845308]
[1719842731083,0.159093,62856.0,62854.0,0.37545308]
[1719842731393,0.159091,62857.0,62855.0,0.23879449]
[1719842731602,0.00514544,62856.0,62855.0,0.23879449]
[1719842732004,0.00514544,62856.0,62855.0,0.40107219]
[1719842732230,0.1594,62868.0,62857.0,0.05946805]
[1719842732428,0.45865295,62869.0,62857.0,0.05946805]
[1719842732429,0.159066,62867.0,62863.0,0.159075]
[1719842732605,0.159069,62866.0,62864.0,0.29198658]
[1719842733035,0.14053195,62866.0,62864.0,0.29198658]
[1719842733225,0.159068,62866.0,62864.0,0.29198658]
[1719842733810,0.14053195,62867.0,62864.0,0.29198658]
[1719842734013,0.159071,62865.0,62864.0,0.29198658]
[1719842734215,0.159071,62865.0,62864.0,0.30598658]
[1719842734412,0.159069,62866.0,62864.0,0.46048658]
[1719842734603,0.159069,62866.0,62865.0,0.02677272]
[1719842734805,0.159069,62866.0,62865.0,0.2121117]
[1719842735419,0.159067,62867.0,62865.0,0.2121117]
[1719842735621,0.477198,62867.0,62866.0,0.16233898]
[1719842735824,0.477198,62867.0,62866.0,0.17962208]
[1719842736022,0.159061,62869.0,62866.0,0.20262208]
[1719842736433,0.318121,62869.0,62867.0,0.023]
[1719842736641,0.15906,62869.0,62868.0,0.16233898]
[1719842736843,0.167469,62870.0,62868.0,0.18533898]
[1719842737182,0.00841,62870.0,62869.0,0.07645551]
[1719842737478,0.00841,62870.0,62869.0,0.23879449]
[1719842737945,0.00841,62870.0,62869.0,0.71597549]
[1719842738816,0.00841,62870.0,62869.0,1.03409649]
[1719842739011,0.00841,62870.0,62869.0,1.23409649]
[1719842739221,0.00841,62870.0,62869.0,1.38776454]
[1719842739375,0.00841,62870.0,62869.0,1.45926454]
[1719842739576,0.00841,62870.0,62869.0,1.47326454]
[1719842740540,0.00841,62870.0,62869.0,2.21335552]
[1719842740699,0.00841,62870.0,62869.0,2.23279438]
[1719842740901,0.0084,62872.0,62871.0,1.49482603]
[1719842741096,0.0084,62872.0,62871.0,2.66636461]
[1719842741282,0.0084,62890.0,62888.0,1.99452503]
[1719842741481,1e-08,62889.0,62888.0,2.82219501]
[1719842741732,0.0084,62890.0,62889.0,1.69450803]
[1719842741733,1e-08,62890.0,62889.0,1.69450803]
[1719842741941,1e-08,62890.0,62889.0,1.97984701]
[1719842742093,1e-08,62890.0,62889.0,2.00661973]
[1719842742499,0.0126017,62896.0,62894.0,1.65282003]
[1719842742777,0.0126017,62896.0,62894.0,2.06505901]
[1719842742980,0.0126017,62896.0,62894.0,2.16505901]
[1719842743308,0.07803002,62922.0,62912.0,0.2]
[1719842743510,0.07803002,62922.0,62917.0,0.2269]
[1719842743511,0.158936,62919.0,62917.0,0.2269]
[1719842743851,0.15893,62921.0,62917.0,0.38923898]
[1719842744051,0.15893,62921.0,62917.0,0.41223898]
[1719842744262,0.158932,62920.0,62917.0,0.41223898]
[1719842744669,0.317835,62926.0,62917.0,0.73011798]
[1719842744670,0.39586402,62926.0,62917.0,0.73011798]
[1719842744897,0.158916,62927.0,62917.0,0.88905698]
[1719842745026,0.14053195,62928.0,62917.0,0.94251249]
[1719842745249,0.317804,62932.0,62917.0,1.38236147]
[1719842745472,0.29944595,62927.0,62917.0,1.06448247]
[1719842745681,0.158917,62926.0,62917.0,1.06448247]
[1719842745901,0.317819,62929.0,62917.0,1.06448247]
[1719842746116,0.45833595,62932.0,62917.0,1.12395052]
[1719842746270,0.317794,62934.0,62917.0,1.90492952]
[1719842746470,0.167299,62933.0,62917.0,1.91892952]
[1719842746670,0.158901,62932.0,62917.0,2.23680852]
[1719842746875,0.158904,62931.0,62917.0,1.91892952]
[1719842747075,0.158904,62931.0,62917.0,1.93292952]
[1719842747293,0.0084,62933.0,62917.0,1.93292952]
[1719842747294,0.0084,62933.0,62917.0,2.10863952]
[1719842747510,0.0084,62933.0,62917.0,2.42651852]
[1719842747738,0.0084,62933.0,62917.0,2.41251852]
[1719842748122,0.167301,62933.0,62927.0,0.358912]
[1719842748325,0.167301,62933.0,62932.0,0.38923898]
[1719842748326,0.167299,62933.0,62932.0,0.38923898]
[1719842748753,0.167299,62933.0,62932.0,0.41223898]
[1719842749064,0.0084,62933.0,62932.0,0.41223898]
[1719842749277,0.17424063,62933.0,62932.0,0.41223898]
[1719842749634,0.49203863,62933.0,62932.0,0.41223898]
[1719842749838,0.01534163,62933.0,62932.0,0.4390117]
[1719842750458,0.01534163,62933.0,62932.0,0.5979127]
[1719842750660,0.0084,62933.0,62932.0,0.4530117]
[1719842750834,0.01534892,62933.0,62932.0,0.4530117]
[1719842751036,0.01534892,62933.0,62932.0,0.4390117]
[1719842751570,0.01534892,62933.0,62932.0,0.4670117]
[1719842752127,0.01534892,62933.0,62932.0,0.2401117]
[1719842752128,0.17424792,62933.0,62932.0,0.2401117]
[1719842752344,0.49204592,62933.0,62932.0,0.2261117]
[1719842752570,0.97037587,62933.0,62932.0,0.2261117]
[1719842752827,0.49204592,62933.0,62932.0,0.2401117]
[1719842753201,0.49204592,62933.0,62932.0,0.2261117]
[1719842753402,0.49204592,62933.0,62932.0,0.2121117]
[1719842754097,0.80984392,62933.0,62932.0,0.2121117]
[1719842754301,0.97037587,62933.0,62932.0,0.17633898]
[1719842754498,1.04840589,62933.0,62932.0,0.17633898]
[1719842754728,1.45510389,62933.0,62932.0,0.17633898]
[1719842754949,1.45510389,62933.0,62932.0,0.16233898]
[1719842755256,1.52460389,62933.0,62932.0,0.19033898]
[1719842755447,1.52460389,62933.0,62932.0,0.17633898]
[1719842755653,1.52460389,62933.0,62932.0,0.19397288]
[1719842755813,1.52460389,62933.0,62932.0,0.20797288]
[1719842755996,1.52460389,62933.0,62932.0,0.19397288]
[1719842756407,1.52460389,62933.0,62932.0,0.20797288]
[1719842756864,1.52460389,62933.0,62932.0,0.19397288]
[1719842757316,1.52460389,62933.0,62932.0,0.20797288]
[1719842757838,1.52460389,62933.0,62932.0,0.19397288]
[1719842758363,1.52460389,62933.0,62932.0,0.20797288]
[1719842760824,1.52460389,62933.0,62932.0,0.19033898]
[1719842761066,1.52460389,62933.0,62932.0,0.028]
[1719842761450,1.52460389,62933.0,62932.0,0.19033898]
[1719842761810,0.49204592,62933.0,62932.0,0.19033898]
[1719842762018,0.17424792,62933.0,62932.0,0.17633898]
[1719842762216,0.49204592,62933.0,62932.0,0.17997288]
[1719842762419,0.80984392,62933.0,62932.0,0.20297288]
[1719842762646,0.80984392,62933.0,62932.0,0.16733898]
[1719842762891,0.80984392,62933.0,62932.0,0.16333898]
[1719842763068,0.97037587,62933.0,62932.0,0.16333898]
[1719842763270,0.80984392,62933.0,62932.0,0.17733898]
[1719842763477,0.80984392,62933.0,62932.0,0.16333898]
[1719842763686,0.49204592,62933.0,62932.0,0.19598288]
[1719842763888,0.49204592,62933.0,62932.0,0.23198288]
[1719842764240,0.01534892,62933.0,62932.0,0.23098288]
[1719842764647,0.01534892,62933.0,62932.0,0.24498288]
[1719842764648,0.17424792,62933.0,62932.0,0.24498288]
[1719842764871,0.01534892,62933.0,62932.0,0.24498288]
[1719842765071,0.01534892,62933.0,62932.0,0.23098288]
[1719842765270,0.17424792,62933.0,62932.0,0.23098288]
[1719842765451,0.01534892,62933.0,62932.0,0.24398288]
[1719842765660,0.0084,62933.0,62932.0,0.24398288]
[1719842765853,0.0084,62933.0,62932.0,0.2471605]
[1719842766052,0.01495676,62933.0,62932.0,0.2211605]
[1719842766496,0.01495676,62933.0,62932.0,0.2351605]
[1719842766698,0.01495676,62933.0,62932.0,1.02648988]
[1719842767040,0.0084,62933.0,62932.0,0.23198288]
[1719842767580,0.0084,62933.0,62932.0,0.99823233]
[1719842767787,0.158879,62941.0,62936.0,0.21835705]
[1719842768101,0.00982639,62940.0,62939.0,0.16233898]
[1719842768318,0.158879,62941.0,62939.0,0.16233898]
[1719842768319,0.158879,62941.0,62939.0,0.18533898]
[1719842768619,0.317746,62944.0,62939.0,0.16233898]
[1719842768620,0.00982639,62940.0,62939.0,0.16233898]
[1719842768783,0.00982639,62940.0,62939.0,0.3473993]
[1719842768983,0.317732,62947.0,62941.0,0.226978]
[1719842769229,0.317721,62949.0,62944.0,0.16233898]
[1719842769439,0.317721,62949.0,62945.0,0.023]
[1719842769440,0.00983094,62946.0,62945.0,0.023]
[1719842769745,0.00983094,62946.0,62945.0,0.40244121]
[1719842769887,0.00983094,62946.0,62945.0,0.41606179]
[1719842770087,0.158859,62949.0,62945.0,0.41606179]
[1719842770286,0.317707,62951.0,62945.0,0.41606179]
[1719842770287,0.00982856,62948.0,62947.0,0.16233898]
[1719842770539,0.158858,62949.0,62947.0,0.38341789]
[1719842770769,0.158858,62949.0,62948.0,0.30552979]
[1719842770900,0.158858,62949.0,62948.0,0.49086877]
[1719842772007,0.158858,62949.0,62948.0,0.29278986]
[1719842772209,0.158857,62950.0,62948.0,0.49086261]
[1719842772433,0.158854,62951.0,62949.0,0.44747588]
[1719842772655,0.158854,62951.0,62950.0,0.19807275]
[1719842772859,0.02,62957.0,62950.0,0.19807275]
[1719842772860,0.24393002,62969.0,62958.0,0.158836]
[1719842773073,0.158816,62966.0,62958.0,1.22265073]
[1719842773268,0.317637,62965.0,62958.0,0.96062263]
[1719842773480,0.317637,62965.0,62958.0,0.80178663]
[1719842773481,0.4891017,62959.0,62958.0,0.80178663]
[1719842773630,0.96730065,62959.0,62958.0,0.55188663]
[1719842773831,1.36299767,62959.0,62958.0,0.51924273]
[1719842774012,1.36299767,62959.0,62958.0,0.32116998]
[1719842774013,1.52639767,62959.0,62958.0,0.32116998]
[1719842774635,0.4891017,62959.0,62958.0,0.32116998]
[1719842774842,0.56713172,62959.0,62958.0,0.55223721]
[1719842775042,1.04533067,62959.0,62958.0,0.3763937]
[1719842775245,1.02533067,62959.0,62958.0,0.7255001]
[1719842775476,1.36299767,62959.0,62958.0,0.30186839]
[1719842775646,1.85076467,62959.0,62958.0,0.169831]
[1719842775925,1.85076467,62959.0,62958.0,0.172831]
[1719842776263,2.16843167,62959.0,62958.0,0.172831]
[1719842776767,2.15843167,62959.0,62958.0,0.186831]
[1719842776979,2.16843167,62959.0,62958.0,0.186831]
[1719842777170,2.16843167,62959.0,62958.0,0.172831]
[1719842777572,2.16843167,62959.0,62958.0,0.178831]
[1719842778071,2.16843167,62959.0,62958.0,0.164831]
[1719842778272,2.16843167,62959.0,62958.0,0.017]
[1719842778608,2.16843167,62959.0,62958.0,0.006]
[1719842778921,2.16843167,62959.0,62958.0,0.013]
[1719842779117,2.15843167,62959.0,62958.0,0.013]
[1719842779552,2.16843167,62959.0,62958.0,0.013]
[1719842780353,2.15843167,62959.0,62958.0,0.013]
[1719842780561,2.48609867,62959.0,62958.0,1e-06]
[1719842780779,2.90119899,62959.0,62958.0,1e-06]
[1719842780990,3.01299867,62959.0,62958.0,1e-06]
[1719842781191,0.158926,62922.0,62921.0,0.47591475]
[1719842781343,0.794632,62922.0,62921.0,1.127332]
[1719842781546,1.112485,62922.0,62921.0,1.2476876]
[1719842781745,0.07803002,62909.0,62906.0,0.07054118]
[1719842781971,0.0902,62922.0,62904.0,0.00317932]
[1719842781972,0.317939,62905.0,62904.0,0.00317932]
[1719842782127,0.158969,62905.0,62904.0,0.158831]
[1719842782331,0.794847,62905.0,62904.0,0.1747141]
[1719842782727,0.794847,62905.0,62904.0,0.33705308]
[1719842783428,0.80478615,62905.0,62904.0,0.33705308]
[1719842783961,1.36128712,62905.0,62904.0,0.32116998]
[1719842784167,1.36128712,62905.0,62904.0,0.158831]
[1719842784279,1.36128712,62905.0,62904.0,0.172831]
[1719842784280,1.36228712,62905.0,62904.0,0.172831]
[1719842784494,1.36228712,62905.0,62904.0,0.33516998]
[1719842784730,1.36228712,62905.0,62904.0,0.32116998]
[1719842784731,1.36128712,62905.0,62904.0,0.32116998]
[1719842784937,1.20175517,62905.0,62904.0,0.33516998]
[1719842785140,1.20175517,62905.0,62904.0,0.34916998]
[1719842785141,1.20275517,62905.0,62904.0,0.34916998]
[1719842785519,1.12472515,62905.0,62904.0,0.38408698]
[1719842785725,0.48884715,62905.0,62904.0,0.38508698]
[1719842785951,0.80678615,62905.0,62904.0,0.39408698]
[1719842786150,0.80578615,62905.0,62904.0,0.39308698]
[1719842786350,0.80678615,62905.0,62904.0,0.40308698]
[1719842786726,0.80578615,62905.0,62904.0,0.38908698]
[1719842787131,0.80578615,62905.0,62904.0,0.39008698]
[1719842787351,0.80578615,62905.0,62904.0,0.23125598]
[1719842787552,0.80578615,62905.0,62904.0,0.23025598]
[1719842788046,0.80578615,62905.0,62904.0,0.24425598]
[1719842788250,0.81062665,62905.0,62904.0,0.24425598]
[1719842788447,0.80962665,62905.0,62904.0,0.23425598]
[1719842788800,0.49268765,62905.0,62904.0,0.24825598]
[1719842789212,0.49168765,62905.0,62904.0,0.22025598]
[1719842789409,0.49168765,62905.0,62904.0,0.59649603]
[1719842789410,0.01477965,62905.0,62904.0,0.59649603]
[1719842789617,0.01577965,62905.0,62904.0,0.61049603]
[1719842789743,0.001,62905.0,62904.0,0.65778139]
[1719842789945,0.001,62905.0,62904.0,0.59831334]
[1719842790169,0.001,62905.0,62904.0,0.39205598]
[1719842790372,0.478908,62905.0,62904.0,0.23425598]
[1719842790596,0.49001988,62905.0,62904.0,0.23425598]
[1719842791226,0.7284499,62905.0,62904.0,0.028]
[1719842791393,2.12539885,62905.0,62904.0,0.028]
[1719842791576,2.12539885,62905.0,62904.0,0.014]
[1719842791775,1.84638096,62905.0,62904.0,0.014]
[1719842791997,1.84638096,62905.0,62904.0,0.028]
[1719842791998,1.94213114,62905.0,62904.0,0.028]
[1719842792208,2.26007014,62905.0,62904.0,0.028]
[1719842792414,2.26007014,62905.0,62885.0,0.47591475]
[1719842792415,0.80505,62889.0,62885.0,0.47591475]
[1719842792622,0.80505,62889.0,62888.0,0.32116998]
[1719842792623,0.47703,62889.0,62888.0,0.32116998]
[1719842793028,0.49172399,62889.0,62888.0,0.32116998]
[1719842793234,0.80974399,62889.0,62888.0,0.32116998]
[1719842793636,0.95027594,62889.0,62888.0,0.32116998]
[1719842793840,1.28829594,62889.0,62888.0,0.32116998]
[1719842794085,1.28829594,62889.0,62888.0,0.158831]
[1719842794086,1.45482596,62889.0,62888.0,0.158831]
[1719842794287,1.77284596,62889.0,62888.0,0.158831]
[1719842794700,1.77284596,62889.0,62866.0,0.4716]
[1719842794701,0.477174,62870.0,62866.0,0.4716]
[1719842794864,0.477174,62870.0,62865.0,0.2]
[1719842794865,0.48833218,62870.0,62869.0,0.33039898]
[1719842796072,0.80744818,62870.0,62869.0,0.34439898]
[1719842796299,0.94898013,62870.0,62869.0,0.35839898]
[1719842796539,1.26509613,62870.0,62869.0,0.33039898]
[1719842796860,0.96698013,62870.0,62869.0,0.34439898]
[1719842797031,1.58313862,62870.0,62869.0,0.34439898]
[1719842797239,1.53242615,62870.0,62869.0,0.33039898]
[1719842797474,1.53242615,62870.0,62869.0,0.36483888]
[1719842797624,1.53242615,62870.0,62869.0,0.16806]
[1719842797826,1.58213862,62870.0,62869.0,0.16806]
[1719842798029,1.62817633,62870.0,62869.0,0.16806]
[1719842798284,1.94629233,62870.0,62869.0,0.16806]
[1719842798421,1.94629233,62870.0,62869.0,0.18206]
[1719842798422,1.95729233,62870.0,62869.0,0.18206]
[1719842798885,2.02007118,62870.0,62869.0,0.18206]
[1719842799187,2.01907118,62870.0,62869.0,0.16806]
[1719842799390,2.27640833,62870.0,62869.0,0.19606]
[1719842799859,2.27640833,62870.0,62861.0,0.158831]
[1719842799860,1.75946797,62862.0,62861.0,0.158831]
[1719842800069,1.75946797,62862.0,62855.0,0.009229]
[1719842800070,1.03402897,62856.0,62855.0,0.009229]
[1719842800442,1.73160593,62856.0,62855.0,0.009229]
[1719842801252,1.66508054,62856.0,62855.0,0.009229]
[1719842801455,1.38998333,62856.0,62855.0,0.17156798]
[1719842801672,1.38998333,62856.0,62855.0,0.20460788]
[1719842801673,1.36689354,62856.0,62855.0,0.20460788]
[1719842801873,1.41023192,62856.0,62855.0,0.17156798]
[1719842802095,1.72841892,62856.0,62855.0,0.009229]
[1719842802233,1.77150871,62856.0,62855.0,0.009229]
[1719842803070,1.77250871,62856.0,62855.0,0.009229]
[1719842803483,1.73041892,62856.0,62855.0,0.009229]
[1719842804007,1.39223192,62856.0,62855.0,0.17156798]
[1719842804301,1.39223192,62856.0,62855.0,0.20460788]
[1719842804532,1.34889354,62856.0,62855.0,0.20460788]
[1719842805061,1.13033157,62856.0,62855.0,0.20460788]
[1719842805266,1.20836159,62856.0,62855.0,0.20460788]
[1719842805471,0.49395757,62856.0,62855.0,0.20460788]
[1719842805698,0.81214457,62856.0,62855.0,0.20460788]
[1719842806008,0.01667757,62856.0,62855.0,0.22760788]
[1719842806244,0.49395757,62856.0,62855.0,0.22760788]
[1719842806664,0.49295757,62856.0,62855.0,0.22760788]
[1719842807013,0.49395757,62856.0,62855.0,0.23560788]
[1719842807335,0.01567757,62856.0,62855.0,0.23560788]
[1719842807742,0.17477057,62856.0,62855.0,0.23560788]
[1719842807945,0.17477057,62856.0,62855.0,0.20256798]
[1719842808145,0.01567757,62856.0,62855.0,0.17956798]
[1719842808391,0.001,62856.0,62855.0,0.2057494]
[1719842808547,0.159089,62858.0,62855.0,0.2057494]
[1719842808752,0.0145158,62857.0,62856.0,0.6339995]
[1719842808911,0.477162,62872.0,62865.0,0.318141]
[1719842809112,0.01457423,62871.0,62866.0,0.02618097]
[1719842809312,0.17363023,62871.0,62867.0,0.19674708]
[1719842809646,0.17363023,62871.0,62868.0,0.023]
[1719842809869,0.159058,62870.0,62869.0,0.16233898]
[1719842810132,0.159058,62870.0,62869.0,0.18533898]
[1719842810337,0.17363788,62870.0,62869.0,0.18533898]
[1719842810540,0.17363788,62870.0,62869.0,0.27718309]
[1719842810749,0.01457988,62870.0,62869.0,0.27718309]
[1719842810960,0.17363788,62870.0,62869.0,0.34548309]
[1719842811178,0.01457988,62870.0,62869.0,0.34548309]
[1719842811379,0.01457988,62870.0,62869.0,0.91396409]
[1719842811591,0.318089,62876.0,62869.0,0.91396409]
[1719842811592,0.159051,62873.0,62869.0,0.59584309]
[1719842811798,0.159051,62873.0,62870.0,0.10408756]
[1719842812022,0.159025,62883.0,62873.0,0.12196998]
[1719842812227,0.09803002,62889.0,62878.0,0.16233898]
[1719842812228,0.159031,62881.0,62878.0,0.16233898]
[1719842812353,0.159031,62881.0,62879.0,0.0344081]
[1719842812557,0.159027,62883.0,62880.0,0.18533898]
[1719842812757,0.15903,62881.0,62880.0,0.32116998]
[1719842812983,0.477091,62881.0,62880.0,0.32116998]
[1719842813375,0.49169801,62881.0,62880.0,0.32116998]
[1719842813586,0.81075901,62881.0,62880.0,0.32116998]
[1719842813980,0.95029096,62881.0,62880.0,0.32316998]
[1719842814230,0.80975901,62881.0,62880.0,0.32316998]
[1719842814543,0.95129096,62881.0,62880.0,0.32716998]
[1719842814784,0.81075901,62881.0,62880.0,0.33916998]
[1719842814992,0.97129096,62881.0,62880.0,0.33916998]
[1719842815177,1.36738198,62881.0,62880.0,0.33916998]
[1719842815599,1.36738198,62881.0,62880.0,0.176831]
[1719842815842,1.34738198,62881.0,62880.0,0.176831]
[1719842816052,1.36638198,62881.0,62880.0,0.170831]
[1719842816459,1.36738198,62881.0,62880.0,0.184831]
[1719842816684,1.20685003,62881.0,62880.0,0.184831]
[1719842816892,1.20685003,62881.0,62880.0,0.2033141]
[1719842817092,1.20685003,62881.0,62880.0,0.184831]
[1719842817535,1.20685003,62881.0,62880.0,0.34716998]
[1719842817536,0.17463701,62881.0,62880.0,0.34716998]
[1719842817740,0.49269801,62881.0,62880.0,0.37016998]
[1719842818117,0.49269801,62881.0,62880.0,0.21133898]
[1719842818723,0.49269801,62881.0,62880.0,0.24837738]
[1719842818724,0.01560701,62881.0,62880.0,0.24837738]
[1719842818956,0.01560701,62881.0,62880.0,1.26411043]
[1719842819198,0.159002,62892.0,62887.0,0.31803]
[1719842819358,0.159,62893.0,62888.0,0.34434998]
[1719842819689,0.01454742,62892.0,62888.0,0.34434998]
[1719842819832,0.01454742,62892.0,62889.0,0.08921381]
[1719842820026,0.01454742,62892.0,62890.0,0.18533898]
[1719842820231,0.159005,62891.0,62890.0,0.18533898]
[1719842820452,0.477015,62891.0,62890.0,0.18533898]
[1719842820658,0.49155866,62891.0,62890.0,0.18533898]
[1719842820852,0.01454366,62891.0,62890.0,0.21975598]
[1719842821213,0.14053195,62899.0,62891.0,0.318007]
[1719842821422,0.14053195,62896.0,62892.0,0.18533898]
[1719842821620,0.158995,62895.0,62893.0,0.023]
[1719842821819,0.317978,62898.0,62893.0,0.023]
[1719842821820,0.158992,62897.0,62894.0,0.20261508]
[1719842822062,0.317978,62898.0,62895.0,0.023]
[1719842822063,0.317976,62898.0,62895.0,0.023]
[1719842822279,0.47697,62897.0,62896.0,0.16233898]
[1719842822690,0.15899,62897.0,62896.0,0.16233898]
[1719842822866,0.15899,62897.0,62896.0,0.21668339]
[1719842823510,0.47697,62897.0,62896.0,0.16233898]
[1719842823710,1.35149197,62897.0,62896.0,0.16233898]
[1719842824486,1.35149197,62897.0,62896.0,0.17533898]
[1719842825337,1.35149197,62897.0,62896.0,0.013]
[1719842825537,1.26349695,62895.0,62894.0,0.158831]
[1719842825757,1.27349695,62895.0,62894.0,0.158831]
[1719842826017,1.19099502,62895.0,62894.0,0.158831]
[1719842826378,1.35152697,62895.0,62894.0,0.158831]
[1719842826562,1.19099502,62895.0,62894.0,0.158831]
[1719842827082,1.33152697,62895.0,62894.0,0.158831]
[1719842827423,0.476985,62895.0,62894.0,0.33705308]
[1719842827605,0.795975,62895.0,62894.0,0.33116998]
[1719842827761,0.95650695,62895.0,62894.0,0.33116998]
[1719842827959,1.35252697,62895.0,62894.0,0.168831]
[1719842828166,1.35252697,62895.0,62894.0,0.176831]
[1719842828419,1.36715886,62895.0,62894.0,0.176831]
[1719842828597,1.68514886,62895.0,62894.0,0.176831]
[1719842828798,1.68514886,62895.0,62894.0,0.168831]
[1719842829057,1.85984886,62895.0,62894.0,0.158831]
[1719842829259,1.85984886,62895.0,62894.0,0.172831]
[1719842829462,1.84984886,62895.0,62894.0,0.172831]
[1719842830089,2.17783886,62895.0,62894.0,0.172831]
[1719842830270,2.22477345,62895.0,62894.0,0.172831]
[1719842830423,2.27783886,62895.0,62894.0,0.014]
[1719842830625,2.47783886,62895.0,62894.0,0.014]
[1719842830824,2.47883886,62895.0,62894.0,0.028]
[1719842831025,2.47883886,62895.0,62894.0,0.014]
[1719842831026,2.79682886,62895.0,62894.0,0.014]
[1719842831257,1.113301,62876.0,62875.0,0.47591475]
[1719842831463,1.19133102,62876.0,62875.0,0.84467621]
[1719842831629,1.2059153,62876.0,62875.0,0.36876146]
[1719842831828,1.36644725,62876.0,62875.0,0.36876146]
[1719842832290,1.36644725,62876.0,62875.0,0.32116998]
[1719842832707,1.36644725,62876.0,62875.0,0.158831]
[1719842832921,1.68453325,62876.0,62875.0,0.158831]
[1719842834873,1.68553325,62876.0,62875.0,0.172831]
[1719842835071,1.68453325,62876.0,62875.0,0.158831]
[1719842835277,1.68453325,62876.0,62875.0,0.170831]
[1719842835475,1.68453325,62876.0,62875.0,0.1969141]
[1719842835476,1.68553325,62876.0,62875.0,0.1969141]
[1719842835875,1.68553325,62876.0,62875.0,0.1849141]
[1719842836004,1.68553325,62876.0,62875.0,0.167831]
[1719842836206,1.68553325,62876.0,62875.0,0.174831]
[1719842836427,1.36744725,62876.0,62875.0,0.33716998]
[1719842836630,1.36744725,62876.0,62875.0,0.17833898]
[1719842836895,1.36744725,62876.0,62875.0,0.19617288]
[1719842837028,1.12888528,62876.0,62875.0,0.19617288]
[1719842837218,1.12888528,62876.0,62875.0,0.37187288]
[1719842837219,0.17462728,62876.0,62875.0,0.37187288]
[1719842837420,0.01558428,62876.0,62875.0,0.39487288]
[1719842837747,0.17462728,62876.0,62875.0,0.39487288]
[1719842838481,0.01558428,62876.0,62875.0,0.39487288]
[1719842838886,0.17462728,62876.0,62875.0,0.39487288]
[1719842839027,0.17462728,62876.0,62875.0,0.37703898]
[1719842839475,0.49271328,62876.0,62875.0,0.37703898]
[1719842839647,1.2069153,62876.0,62875.0,0.17833898]
[1719842839994,1.36744725,62876.0,62875.0,0.17833898]
[1719842840886,0.49271328,62876.0,62875.0,0.19617288]
[1719842841090,0.17462728,62876.0,62875.0,0.21917288]
[1719842841392,0.49271328,62876.0,62875.0,0.21917288]
[1719842841825,0.49271328,62876.0,62875.0,0.69630888]
[1719842841826,0.01558428,62876.0,62875.0,0.69630888]
[1719842841977,0.01558428,62876.0,62875.0,0.21917288]
[1719842842177,0.001,62876.0,62875.0,0.37821788]
[1719842842377,0.001,62876.0,62875.0,0.47531788]
[1719842842788,0.001,62876.0,62875.0,0.92667693]
[1719842842962,0.1,62900.0,62875.0,0.92667693]
[1719842842963,0.159022,62885.0,62880.0,0.159032]
[1719842843166,0.00996521,62884.0,62881.0,0.21036927]
[1719842843385,0.477084,62882.0,62881.0,0.20718899]
[1719842843586,0.48705731,62882.0,62881.0,0.20718899]
[1719842845162,1.35177497,62881.0,62880.0,0.011]
[1719842845360,1.67979082,62881.0,62880.0,0.011]
[1719842845564,1.68979082,62881.0,62880.0,0.011]
[1719842845967,2.00785182,62881.0,62880.0,0.011]
[1719842846405,1.85154897,62876.0,62875.0,0.158831]
[1719842846816,1.86146848,62876.0,62875.0,0.158831]
[1719842846942,1.85146848,62876.0,62875.0,0.158831]
[1719842847605,1.86146848,62876.0,62875.0,0.158831]
[1719842848321,1.86146848,62876.0,62875.0,0.165831]